[Event "*** Titled Tuesday Blitz"]
[Site "Chess.com"]
[Date "2020.02.04"]
[Round "4"]
[White "Fy_Rakotomaharo"]
[Black "kacprekt"]
[Result "0-1"]
[WhiteElo "2550"]
[BlackElo "2405"]
[TimeControl "180+2"]
[EndTime "13:52:12 PST"]
[Termination "kacprekt won by resignation"]

1. e4 {[%clk 0:02:15.2]} 1... c6 {[%clk 0:03:00.1]} 2. Nf3 {[%clk 0:02:14.8]}
2... d5 {[%clk 0:03:00.4]} 3. d3 {[%clk 0:02:16.4]} 3... g6 {[%clk 0:02:57.8]}
4. e5 {[%clk 0:02:16.1]} 4... Bg7 {[%clk 0:02:58.8]} 5. d4 {[%clk 0:02:17]} 5...
c5 {[%clk 0:02:57.9]} 6. dxc5 {[%clk 0:02:14.3]} 6... Nc6 {[%clk 0:02:58.2]} 7.
Bb5 {[%clk 0:02:14]} 7... Bd7 {[%clk 0:02:37.6]} 8. Qxd5 {[%clk 0:02:05]} 8...
Qa5+ {[%clk 0:02:37]} 9. Nc3 {[%clk 0:02:03.3]} 9... O-O-O {[%clk 0:02:38]} 10.
Bxc6 {[%clk 0:01:33.5]} 10... Bxc6 {[%clk 0:02:36.3]} 11. Qxf7 {[%clk
0:01:34.7]} 11... Bh6 {[%clk 0:02:00.6]} 12. O-O {[%clk 0:01:15.7]} 12... Qxc5
{[%clk 0:01:58.6]} 13. Bxh6 {[%clk 0:01:07.5]} 13... Nxh6 {[%clk 0:01:58.9]} 14.
Qe6+ {[%clk 0:01:08.6]} 14... Kb8 {[%clk 0:01:58.1]} 15. Qh3 {[%clk 0:01:04.2]}
15... Nf5 {[%clk 0:01:50.3]} 16. Rad1 {[%clk 0:01:04.1]} 16... Bxf3 {[%clk
0:01:35.8]} 17. Qxf3 {[%clk 0:01:06]} 17... Qxe5 {[%clk 0:01:36.8]} 18. Rfe1
{[%clk 0:01:04.6]} 18... Rxd1 {[%clk 0:01:28]} 19. Qxd1 {[%clk 0:01:06.5]} 19...
Qc7 {[%clk 0:01:23.2]} 20. Nd5 {[%clk 0:01:07.1]} 20... Qd6 {[%clk 0:01:17.1]}
21. c4 {[%clk 0:01:06.8]} 21... Rd8 {[%clk 0:01:16.5]} 22. Qe2 {[%clk
0:01:06.7]} 22... Qc5 {[%clk 0:01:00.1]} 23. Qe5+ {[%clk 0:01:05.2]} 23... Rd6
{[%clk 0:00:43.3]} 24. h3 {[%clk 0:00:52.9]} 24... e6 {[%clk 0:00:41.5]} 25. Nf6
{[%clk 0:00:27.9]} 25... Qxe5 {[%clk 0:00:36.4]} 26. Rxe5 {[%clk 0:00:29.8]}
26... Rd1+ {[%clk 0:00:28.3]} 27. Kh2 {[%clk 0:00:30.9]} 27... Rd2 {[%clk
0:00:29.5]} 28. Rxe6 {[%clk 0:00:32.1]} 28... Rxf2 {[%clk 0:00:28.6]} 29. Nd5
{[%clk 0:00:30.6]} 29... b5 {[%clk 0:00:28.9]} 30. c5 {[%clk 0:00:29.7]} 30...
Rd2 {[%clk 0:00:23.7]} 31. Nc3 {[%clk 0:00:14.5]} 31... Nd4 {[%clk 0:00:21.6]}
32. Re7 {[%clk 0:00:13.9]} 32... Rxb2 {[%clk 0:00:19.4]} 33. Ne4 {[%clk
0:00:10.7]} 33... h5 {[%clk 0:00:16.3]} 34. Nd6 {[%clk 0:00:10.9]} 34... h4
{[%clk 0:00:15.9]} 35. Kg1 {[%clk 0:00:12]} 35... Rc2 {[%clk 0:00:11.2]} 36.
Rb7+ {[%clk 0:00:12.9]} 36... Ka8 {[%clk 0:00:12]} 37. Rc7 {[%clk 0:00:14.8]}
37... a5 {[%clk 0:00:11.3]} 38. Kf1 {[%clk 0:00:13.9]} 38... Kb8 {[%clk
0:00:09.1]} 39. Rb7+ {[%clk 0:00:15.1]} 39... Ka8 {[%clk 0:00:10.4]} 40. Rc7
{[%clk 0:00:15.7]} 40... Kb8 {[%clk 0:00:11.5]} 41. Rc8+ {[%clk 0:00:17.1]}
41... Ka7 {[%clk 0:00:12.8]} 42. Ke1 {[%clk 0:00:18.4]} 42... Ne6 {[%clk
0:00:13.1]} 43. c6 {[%clk 0:00:18.8]} 43... Kb6 {[%clk 0:00:14.4]} 44. Rb8+
{[%clk 0:00:18.2]} 44... Kc7 {[%clk 0:00:15.8]} 45. Rxb5 {[%clk 0:00:17.2]}
45... Kxd6 {[%clk 0:00:16.6]} 46. Rxa5 {[%clk 0:00:18.6]} 46... Rxc6 {[%clk
0:00:17.2]} 47. Ra8 {[%clk 0:00:19.9]} 47... Rc4 {[%clk 0:00:17.8]} 48. Kf2
{[%clk 0:00:21.8]} 48... Ke5 {[%clk 0:00:19]} 49. Kf3 {[%clk 0:00:22.9]} 49...
Rf4+ {[%clk 0:00:18.8]} 50. Ke3 {[%clk 0:00:24.1]} 50... Re4+ {[%clk 0:00:19.8]}
51. Kd3 {[%clk 0:00:25.4]} 51... Nf4+ {[%clk 0:00:20.5]} 52. Kc3 {[%clk
0:00:26.4]} 52... Nxg2 {[%clk 0:00:21.8]} 53. Ra5+ {[%clk 0:00:28.1]} 53... Kf4
{[%clk 0:00:22.4]} 54. a3 {[%clk 0:00:29.8]} 54... Kg3 {[%clk 0:00:23.2]} 55.
Rg5+ {[%clk 0:00:30]} 55... Kxh3 {[%clk 0:00:24.5]} 56. Rxg6 {[%clk 0:00:31.6]}
56... Re3+ {[%clk 0:00:24.8]} 57. Kb4 {[%clk 0:00:32.1]} 57... Nf4 {[%clk
0:00:26]} 58. Rg8 {[%clk 0:00:31.9]} 58... Kh2 {[%clk 0:00:26.3]} 59. a4 {[%clk
0:00:32.7]} 59... Nd5+ {[%clk 0:00:27.3]} 60. Kc5 {[%clk 0:00:33.2]} 60... Nf6
{[%clk 0:00:26]} 61. Rg6 {[%clk 0:00:33.4]} 61... Re6 {[%clk 0:00:24.3]} 62. a5
{[%clk 0:00:33.2]} 62... Ne4+ {[%clk 0:00:25.3]} 0-1

[Event "*** Titled Tuesday Blitz"]
[Site "Chess.com"]
[Date "2020.02.04"]
[Round "4"]
[White "Gordima"]
[Black "OparinGrigoriy"]
[Result "0-1"]
[WhiteElo "2809"]
[BlackElo "3041"]
[TimeControl "180+2"]
[EndTime "13:52:14 PST"]
[Termination "OparinGrigoriy won on time"]

1. d4 {[%clk 0:03:01.1]} 1... Nf6 {[%clk 0:03:00.8]} 2. Nf3 {[%clk 0:03:02.4]}
2... e6 {[%clk 0:03:02.3]} 3. Bg5 {[%clk 0:03:03.7]} 3... d5 {[%clk 0:03:01.8]}
4. Nbd2 {[%clk 0:03:04.7]} 4... Be7 {[%clk 0:03:03.4]} 5. e3 {[%clk 0:03:06]}
5... Nbd7 {[%clk 0:03:03.9]} 6. Bd3 {[%clk 0:03:06.5]} 6... h6 {[%clk
0:03:05.5]} 7. Bh4 {[%clk 0:03:07.3]} 7... b6 {[%clk 0:03:03]} 8. c3 {[%clk
0:02:55.2]} 8... Bb7 {[%clk 0:03:03.9]} 9. a4 {[%clk 0:02:54.6]} 9... a6 {[%clk
0:02:59.7]} 10. Qc2 {[%clk 0:02:48.5]} 10... c5 {[%clk 0:02:57.7]} 11. O-O
{[%clk 0:02:44]} 11... Rc8 {[%clk 0:02:58.4]} 12. Rae1 {[%clk 0:02:37.8]} 12...
O-O {[%clk 0:02:58.5]} 13. Qb1 {[%clk 0:02:37]} 13... Re8 {[%clk 0:02:44.1]} 14.
Ne5 {[%clk 0:02:24.7]} 14... Nxe5 {[%clk 0:02:36.5]} 15. dxe5 {[%clk 0:02:26.6]}
15... Nd7 {[%clk 0:02:38.1]} 16. Bg3 {[%clk 0:02:21.1]} 16... Nf8 {[%clk
0:02:29]} 17. f4 {[%clk 0:02:01.6]} 17... d4 {[%clk 0:02:30.3]} 18. cxd4 {[%clk
0:01:49.7]} 18... cxd4 {[%clk 0:02:32.2]} 19. e4 {[%clk 0:01:50.8]} 19... Qd7
{[%clk 0:02:23.1]} 20. Nc4 {[%clk 0:01:44.5]} 20... Rxc4 {[%clk 0:01:50.7]} 21.
Bxc4 {[%clk 0:01:44.8]} 21... Qxa4 {[%clk 0:01:52.1]} 22. Bd3 {[%clk 0:01:33.2]}
22... Nd7 {[%clk 0:01:50.3]} 23. f5 {[%clk 0:01:32]} 23... Bg5 {[%clk
0:01:50.8]} 24. Qd1 {[%clk 0:01:27.8]} 24... Qxd1 {[%clk 0:01:43.9]} 25. Rxd1
{[%clk 0:01:28.6]} 25... exf5 {[%clk 0:01:45]} 26. exf5 {[%clk 0:01:17]} 26...
Nxe5 {[%clk 0:01:46.2]} 27. Bf4 {[%clk 0:01:03.4]} 27... Nf3+ {[%clk 0:01:32]}
28. gxf3 {[%clk 0:00:57.6]} 28... Bxf4 {[%clk 0:01:33.5]} 29. Be4 {[%clk
0:00:53.9]} 29... Bxe4 {[%clk 0:01:25.3]} 30. fxe4 {[%clk 0:00:54.1]} 30... Rxe4
{[%clk 0:01:27.2]} 31. Kf2 {[%clk 0:00:47]} 31... Be5 {[%clk 0:01:26.4]} 32. h3
{[%clk 0:00:44.6]} 32... Re3 {[%clk 0:01:24]} 33. Ra1 {[%clk 0:00:34.2]} 33...
Rxh3 {[%clk 0:01:19.5]} 34. Rxa6 {[%clk 0:00:32.9]} 34... d3 {[%clk 0:01:21.1]}
35. Rd1 {[%clk 0:00:30.6]} 35... Bxb2 {[%clk 0:01:05.3]} 36. Kg2 {[%clk
0:00:30.3]} 36... Re3 {[%clk 0:00:57]} 37. Rxb6 {[%clk 0:00:31.2]} 37... Bc3
{[%clk 0:00:57.6]} 38. Kf2 {[%clk 0:00:18]} 38... Re5 {[%clk 0:00:28.2]} 39.
Rb8+ {[%clk 0:00:13.6]} 39... Kh7 {[%clk 0:00:29.2]} 40. Rxd3 {[%clk 0:00:15.2]}
40... Rxf5+ {[%clk 0:00:30.2]} 41. Rf3 {[%clk 0:00:16.9]} 41... Rxf3+ {[%clk
0:00:26.3]} 42. Kxf3 {[%clk 0:00:18.8]} 42... g5 {[%clk 0:00:27.1]} 43. Rc8
{[%clk 0:00:16]} 43... Bg7 {[%clk 0:00:25.1]} 44. Rc6 {[%clk 0:00:14.5]} 44...
f6 {[%clk 0:00:26.1]} 45. Ke4 {[%clk 0:00:07.6]} 45... Kg6 {[%clk 0:00:28]} 46.
Rc1 {[%clk 0:00:06.3]} 46... h5 {[%clk 0:00:29.3]} 47. Rf1 {[%clk 0:00:06.7]}
47... Bf8 {[%clk 0:00:29.2]} 48. Rh1 {[%clk 0:00:04.3]} 48... Bd6 {[%clk
0:00:30.3]} 49. Rf1 {[%clk 0:00:05.1]} 49... h4 {[%clk 0:00:31.1]} 50. Rd1
{[%clk 0:00:04.8]} 50... Be5 {[%clk 0:00:31.9]} 51. Rb1 {[%clk 0:00:03.5]} 51...
g4 {[%clk 0:00:32.6]} 52. Rc1 {[%clk 0:00:02.4]} 52... h3 {[%clk 0:00:33.6]} 53.
Rc8 {[%clk 0:00:03]} 53... h2 {[%clk 0:00:34.3]} 54. Rh8 {[%clk 0:00:03.8]}
54... f5+ {[%clk 0:00:22.2]} 55. Kxe5 {[%clk 0:00:04.8]} 55... g3 {[%clk
0:00:23.9]} 56. Rh3 {[%clk 0:00:05.2]} 56... g2 {[%clk 0:00:23.4]} 57. Rg3+
{[%clk 0:00:06.7]} 57... Kf7 {[%clk 0:00:24.3]} 58. Rxg2 {[%clk 0:00:04.3]}
58... h1=Q {[%clk 0:00:26.2]} 59. Re2 {[%clk 0:00:04]} 59... Qf3 {[%clk
0:00:26.3]} 0-1

[Event "*** Titled Tuesday Blitz"]
[Site "Chess.com"]
[Date "2020.02.04"]
[Round "4"]
[White "Kimster98"]
[Black "cukus"]
[Result "1-0"]
[WhiteElo "2697"]
[BlackElo "2480"]
[TimeControl "180+2"]
[EndTime "13:52:21 PST"]
[Termination "Kimster98 won by resignation"]

1. Nf3 {[%clk 0:03:00.7]} 1... c5 {[%clk 0:03:00.1]} 2. b3 {[%clk 0:02:58]} 2...
Nc6 {[%clk 0:02:59.3]} 3. Bb2 {[%clk 0:02:58.6]} 3... d5 {[%clk 0:02:58.5]} 4.
e3 {[%clk 0:02:56.4]} 4... a6 {[%clk 0:02:58.4]} 5. d4 {[%clk 0:02:57]} 5... Bf5
{[%clk 0:02:58.6]} 6. Bd3 {[%clk 0:02:46]} 6... Bxd3 {[%clk 0:02:59]} 7. Qxd3
{[%clk 0:02:47.9]} 7... e6 {[%clk 0:02:59.8]} 8. dxc5 {[%clk 0:02:47.1]} 8...
Nf6 {[%clk 0:03:00]} 9. a3 {[%clk 0:02:46.8]} 9... Bxc5 {[%clk 0:02:59.8]} 10.
Nbd2 {[%clk 0:02:47.5]} 10... O-O {[%clk 0:02:59.4]} 11. O-O {[%clk 0:02:41.2]}
11... Qe7 {[%clk 0:02:56.9]} 12. b4 {[%clk 0:02:38.7]} 12... Ba7 {[%clk
0:02:57.8]} 13. c4 {[%clk 0:02:37.3]} 13... dxc4 {[%clk 0:02:57.2]} 14. Nxc4
{[%clk 0:02:36.9]} 14... Rfd8 {[%clk 0:02:56.3]} 15. Qe2 {[%clk 0:02:36.4]}
15... Ne4 {[%clk 0:02:50.9]} 16. Rfd1 {[%clk 0:02:34.7]} 16... f6 {[%clk
0:02:50.5]} 17. Rxd8+ {[%clk 0:02:34.5]} 17... Rxd8 {[%clk 0:02:51]} 18. Rd1
{[%clk 0:02:36.1]} 18... Rxd1+ {[%clk 0:02:37.6]} 19. Qxd1 {[%clk 0:02:38]}
19... Qd8 {[%clk 0:02:38.2]} 20. Qxd8+ {[%clk 0:02:35.9]} 20... Nxd8 {[%clk
0:02:40.1]} 21. Kf1 {[%clk 0:02:34.1]} 21... b5 {[%clk 0:02:22.6]} 22. Na5
{[%clk 0:02:30]} 22... e5 {[%clk 0:02:18.8]} 23. Ke2 {[%clk 0:02:30.1]} 23...
Kf7 {[%clk 0:02:17.2]} 24. Nd2 {[%clk 0:02:25.3]} 24... Nxd2 {[%clk 0:02:16]}
25. Kxd2 {[%clk 0:02:27.2]} 25... Ke6 {[%clk 0:02:16.1]} 26. f3 {[%clk
0:02:27.6]} 26... Kd7 {[%clk 0:02:00.8]} 27. Kd3 {[%clk 0:02:25.3]} 27... Nc6
{[%clk 0:01:57.4]} 28. Nb3 {[%clk 0:02:25.8]} 28... Kd6 {[%clk 0:01:47.8]} 29.
e4 {[%clk 0:02:21.5]} 29... Nd8 {[%clk 0:01:37]} 30. Bc1 {[%clk 0:02:21.5]}
30... Ne6 {[%clk 0:01:32.2]} 31. Be3 {[%clk 0:02:16.8]} 31... Bxe3 {[%clk
0:01:28.8]} 32. Kxe3 {[%clk 0:02:18.7]} 32... g6 {[%clk 0:01:29.7]} 33. g3
{[%clk 0:02:19.1]} 33... Kc6 {[%clk 0:01:21.6]} 34. h4 {[%clk 0:02:11.3]} 34...
Kd6 {[%clk 0:01:19.5]} 35. f4 {[%clk 0:01:49.3]} 35... g5 {[%clk 0:01:14.9]} 36.
f5 {[%clk 0:01:47.8]} 36... Nc7 {[%clk 0:00:58.8]} 37. hxg5 {[%clk 0:01:47.9]}
37... fxg5 {[%clk 0:01:00.7]} 38. Nc5 {[%clk 0:01:42.8]} 38... h5 {[%clk
0:00:58.7]} 39. Kf3 {[%clk 0:01:25.2]} 39... Ke7 {[%clk 0:00:55.4]} 40. Kg2
{[%clk 0:01:13.7]} 40... Kd6 {[%clk 0:00:53.3]} 41. g4 {[%clk 0:00:58.6]} 41...
h4 {[%clk 0:00:53.3]} 42. Kf3 {[%clk 0:00:38.1]} 42... Ke7 {[%clk 0:00:51.7]}
43. Kf2 {[%clk 0:00:39.5]} 43... Ne8 {[%clk 0:00:33.8]} 44. Nxa6 {[%clk
0:00:38.7]} 44... Nd6 {[%clk 0:00:28.9]} 45. Nc5 {[%clk 0:00:36.2]} 45... Nc4
{[%clk 0:00:29.3]} 46. a4 {[%clk 0:00:35.7]} 46... bxa4 {[%clk 0:00:25.6]} 47.
Nxa4 {[%clk 0:00:37.6]} 47... Nd2 {[%clk 0:00:24.9]} 48. Nc5 {[%clk 0:00:37.1]}
48... Nc4 {[%clk 0:00:18.2]} 49. b5 {[%clk 0:00:37.1]} 49... Nb6 {[%clk
0:00:19.4]} 50. Kf3 {[%clk 0:00:34.2]} 50... Kf6 {[%clk 0:00:18.8]} 51. Kg2
{[%clk 0:00:28.3]} 51... Ke7 {[%clk 0:00:19.5]} 52. Nd3 {[%clk 0:00:23.6]} 52...
Kf6 {[%clk 0:00:20.2]} 53. Nb4 {[%clk 0:00:20.7]} 53... Kf7 {[%clk 0:00:08.6]}
54. Nd5 {[%clk 0:00:16.8]} 54... Nxd5 {[%clk 0:00:06.1]} 55. exd5 {[%clk
0:00:17.8]} 55... e4 {[%clk 0:00:08]} 56. b6 {[%clk 0:00:19.3]} 56... e3 {[%clk
0:00:09.3]} 57. b7 {[%clk 0:00:20.3]} 57... e2 {[%clk 0:00:10.7]} 58. Kf2 {[%clk
0:00:21.6]} 58... h3 {[%clk 0:00:09.2]} 59. b8=Q {[%clk 0:00:22.3]} 1-0

[Event "*** Titled Tuesday Blitz"]
[Site "Chess.com"]
[Date "2020.02.04"]
[Round "4"]
[White "chessasuke"]
[Black "Korona_91"]
[Result "1-0"]
[WhiteElo "2671"]
[BlackElo "2430"]
[TimeControl "180+2"]
[EndTime "13:52:25 PST"]
[Termination "chessasuke won by resignation"]

1. e4 {[%clk 0:03:01.9]} 1... e6 {[%clk 0:03:00.8]} 2. d4 {[%clk 0:03:02]} 2...
d5 {[%clk 0:03:02.2]} 3. Nc3 {[%clk 0:03:02.4]} 3... Bb4 {[%clk 0:03:03.1]} 4.
e5 {[%clk 0:03:02.5]} 4... c5 {[%clk 0:03:04.2]} 5. a3 {[%clk 0:03:03.2]} 5...
Bxc3+ {[%clk 0:03:05.6]} 6. bxc3 {[%clk 0:03:05.1]} 6... Qa5 {[%clk 0:03:07.1]}
7. Bd2 {[%clk 0:03:04.9]} 7... Qa4 {[%clk 0:03:08.6]} 8. Qb1 {[%clk 0:02:58.6]}
8... c4 {[%clk 0:03:07.8]} 9. h4 {[%clk 0:02:58.5]} 9... Ne7 {[%clk 0:03:07.8]}
10. h5 {[%clk 0:02:59.4]} 10... h6 {[%clk 0:03:09.2]} 11. g3 {[%clk 0:02:56]}
11... Nbc6 {[%clk 0:03:10.1]} 12. Rh4 {[%clk 0:02:51.7]} 12... b6 {[%clk
0:03:08.5]} 13. Rg4 {[%clk 0:02:50.8]} 13... Rg8 {[%clk 0:03:08.8]} 14. Rf4
{[%clk 0:02:43.8]} 14... Bd7 {[%clk 0:03:08.9]} 15. Nf3 {[%clk 0:02:42.9]} 15...
Rf8 {[%clk 0:03:09.7]} 16. Rg4 {[%clk 0:02:24.7]} 16... Rg8 {[%clk 0:03:10]} 17.
Nh4 {[%clk 0:02:20.9]} 17... O-O-O {[%clk 0:03:09.7]} 18. Qd1 {[%clk 0:02:20.1]}
18... Nf5 {[%clk 0:03:06.3]} 19. Nxf5 {[%clk 0:02:19.1]} 19... exf5 {[%clk
0:03:08.2]} 20. Rf4 {[%clk 0:02:15.1]} 20... Be6 {[%clk 0:02:57.9]} 21. Bh3
{[%clk 0:02:11.6]} 21... Ne7 {[%clk 0:02:57.4]} 22. Ra2 {[%clk 0:02:11.5]} 22...
Kb8 {[%clk 0:02:41.4]} 23. Qf3 {[%clk 0:02:08]} 23... g5 {[%clk 0:02:39.3]} 24.
hxg6 {[%clk 0:02:08.3]} 24... fxg6 {[%clk 0:02:40.4]} 25. Rh4 {[%clk 0:02:07.1]}
25... g5 {[%clk 0:02:30.9]} 26. Rxh6 {[%clk 0:02:07.9]} 26... g4 {[%clk
0:02:32.2]} 27. Qh1 {[%clk 0:02:04.8]} 27... Ng6 {[%clk 0:02:15.9]} 28. Bg2
{[%clk 0:02:02.2]} 28... Qb5 {[%clk 0:02:16.6]} 29. Ke2 {[%clk 0:02:03.2]} 29...
Rh8 {[%clk 0:02:09.2]} 30. Qh5 {[%clk 0:01:53.6]} 30... Rxh6 {[%clk 0:01:43.8]}
31. Qxh6 {[%clk 0:01:53]} 31... f4 {[%clk 0:01:39.5]} 32. gxf4 {[%clk
0:01:50.6]} 32... Bf5 {[%clk 0:01:38]} 33. Qg5 {[%clk 0:01:49]} 33... Rf8 {[%clk
0:01:34.1]} 34. Ra1 {[%clk 0:01:41.3]} 34... Bxc2 {[%clk 0:01:28.1]} 35. e6
{[%clk 0:01:40.4]} 35... Bd3+ {[%clk 0:01:28.5]} 36. Ke1 {[%clk 0:01:38.9]}
36... Qe8 {[%clk 0:01:27.5]} 37. Qxd5 {[%clk 0:01:36.6]} 37... Kc7 {[%clk
0:01:16.6]} 38. Qb7+ {[%clk 0:01:03]} 38... Kd6 {[%clk 0:01:16.8]} 39. d5 {[%clk
0:01:04.3]} 39... Nh4 {[%clk 0:00:56.8]} 40. Bh1 {[%clk 0:00:59.2]} 40... Nf3+
{[%clk 0:00:43.6]} 41. Bxf3 {[%clk 0:00:59.8]} 41... gxf3 {[%clk 0:00:45.5]} 42.
Be3 {[%clk 0:01:01.3]} 42... Rh8 {[%clk 0:00:34.3]} 43. Kd2 {[%clk 0:01:00]}
43... Qb5 {[%clk 0:00:35.1]} 44. Qc6+ {[%clk 0:00:33]} 44... Qxc6 {[%clk
0:00:35.5]} 45. dxc6 {[%clk 0:00:34.9]} 45... Kxc6 {[%clk 0:00:26.1]} 46. Bd4
{[%clk 0:00:31.6]} 46... Rf8 {[%clk 0:00:23.3]} 47. e7 {[%clk 0:00:30.2]} 47...
Re8 {[%clk 0:00:22.5]} 48. Bf6 {[%clk 0:00:30.5]} 48... Kd6 {[%clk 0:00:23.5]}
49. Rh1 {[%clk 0:00:29.7]} 49... Ke6 {[%clk 0:00:24.3]} 50. Rh6 {[%clk
0:00:30.3]} 50... Kf7 {[%clk 0:00:24.6]} 51. Bg5 {[%clk 0:00:30.9]} 51... Rc8
{[%clk 0:00:18.6]} 52. Rd6 {[%clk 0:00:32.3]} 52... Re8 {[%clk 0:00:13]} 53. Ke3
{[%clk 0:00:32.9]} 53... Bg6 {[%clk 0:00:13.9]} 54. Kxf3 {[%clk 0:00:33.6]}
54... Bh5+ {[%clk 0:00:14.6]} 55. Ke3 {[%clk 0:00:34.7]} 55... b5 {[%clk
0:00:15.8]} 56. Kd4 {[%clk 0:00:35.4]} 56... a5 {[%clk 0:00:16.6]} 57. Kc5
{[%clk 0:00:36]} 57... Rb8 {[%clk 0:00:17.5]} 58. Rd8 {[%clk 0:00:36.1]} 1-0

[Event "*** Titled Tuesday Blitz"]
[Site "Chess.com"]
[Date "2020.02.04"]
[Round "4"]
[White "Keaton87"]
[Black "IMTominho"]
[Result "0-1"]
[WhiteElo "2558"]
[BlackElo "2794"]
[TimeControl "180+2"]
[EndTime "13:52:34 PST"]
[Termination "IMTominho won on time"]

1. d4 {[%clk 0:02:15.9]} 1... d5 {[%clk 0:02:58.1]} 2. Bg5 {[%clk 0:02:17]} 2...
c5 {[%clk 0:02:49.5]} 3. dxc5 {[%clk 0:02:16.8]} 3... Nf6 {[%clk 0:02:44.7]} 4.
Bxf6 {[%clk 0:02:13.1]} 4... gxf6 {[%clk 0:02:43]} 5. Nd2 {[%clk 0:02:14]} 5...
Nd7 {[%clk 0:02:36.7]} 6. e4 {[%clk 0:02:12.7]} 6... Nxc5 {[%clk 0:02:33]} 7.
Qh5 {[%clk 0:02:10.4]} 7... Qb6 {[%clk 0:02:20.4]} 8. O-O-O {[%clk 0:02:08.5]}
8... dxe4 {[%clk 0:02:18.3]} 9. Nxe4 {[%clk 0:02:09.5]} 9... Bh6+ {[%clk
0:02:02.9]} 10. Kb1 {[%clk 0:01:36.8]} 10... Nxe4 {[%clk 0:01:56.6]} 11. Bb5+
{[%clk 0:01:37.1]} 11... Kf8 {[%clk 0:01:56.2]} 12. Qxh6+ {[%clk 0:01:31]} 12...
Kg8 {[%clk 0:01:55.8]} 13. Ne2 {[%clk 0:00:46.6]} 13... Nxf2 {[%clk 0:01:50.9]}
14. Nf4 {[%clk 0:00:32.1]} 14... Ng4 {[%clk 0:01:47.4]} 15. Qh5 {[%clk
0:00:24.8]} 15... Ne5 {[%clk 0:01:30.4]} 16. Qh6 {[%clk 0:00:16.9]} 16... Ng4
{[%clk 0:01:22.4]} 17. Qh5 {[%clk 0:00:17.1]} 17... Ne3 {[%clk 0:01:17.3]} 18.
Rd3 {[%clk 0:00:04.8]} 18... Bf5 {[%clk 0:01:03.9]} 19. Rxe3 {[%clk 0:00:03]}
19... Bxc2+ {[%clk 0:01:02.9]} 20. Kxc2 {[%clk 0:00:03.7]} 20... Qxe3 {[%clk
0:01:01.5]} 21. Qg4+ {[%clk 0:00:04.3]} 21... Kf8 {[%clk 0:01:00.5]} 22. Bd3
{[%clk 0:00:04.2]} 22... h5 {[%clk 0:00:55.6]} 23. Qf5 {[%clk 0:00:05]} 23...
Rd8 {[%clk 0:00:51.3]} 24. Rd1 {[%clk 0:00:05.3]} 24... Qe5 {[%clk 0:00:47.1]}
25. Qxe5 {[%clk 0:00:03.6]} 25... fxe5 {[%clk 0:00:49]} 26. Ne2 {[%clk
0:00:04.9]} 26... e6 {[%clk 0:00:46.1]} 27. Nc3 {[%clk 0:00:05.7]} 27... f5
{[%clk 0:00:43.6]} 28. Rf1 {[%clk 0:00:06.1]} 28... Ke7 {[%clk 0:00:41.3]} 29.
Bc4 {[%clk 0:00:07.4]} 29... Rd4 {[%clk 0:00:38.6]} 30. Bb3 {[%clk 0:00:08.6]}
30... h4 {[%clk 0:00:36.6]} 31. Ne2 {[%clk 0:00:08.6]} 31... Rc8+ {[%clk
0:00:34.2]} 32. Nc3 {[%clk 0:00:08.7]} 32... a6 {[%clk 0:00:31.3]} 33. Rf3
{[%clk 0:00:09.8]} 33... Rg4 {[%clk 0:00:27.8]} 34. g3 {[%clk 0:00:07.7]} 34...
e4 {[%clk 0:00:20.2]} 35. Re3 {[%clk 0:00:07.1]} 35... hxg3 {[%clk 0:00:21.6]}
36. hxg3 {[%clk 0:00:07.8]} 36... Kf6 {[%clk 0:00:22.2]} 37. Kd2 {[%clk
0:00:08.7]} 37... Ke5 {[%clk 0:00:22.7]} 38. Ne2 {[%clk 0:00:09.7]} 38... Rg7
{[%clk 0:00:22.5]} 39. Nf4 {[%clk 0:00:09.9]} 39... Rc6 {[%clk 0:00:21.7]} 40.
Nd3+ {[%clk 0:00:07.7]} 40... Kf6 {[%clk 0:00:20.5]} 41. Nf4 {[%clk 0:00:07.4]}
41... Rd6+ {[%clk 0:00:20.3]} 42. Ke1 {[%clk 0:00:07.1]} 42... Rh7 {[%clk
0:00:21.4]} 43. Rc3 {[%clk 0:00:06]} 43... Rh1+ {[%clk 0:00:20.8]} 44. Kf2
{[%clk 0:00:07.3]} 44... e5 {[%clk 0:00:18.7]} 45. Nd5+ {[%clk 0:00:07.8]} 45...
Kg5 {[%clk 0:00:19.9]} 46. Rc8 {[%clk 0:00:07.2]} 46... Rh2+ {[%clk 0:00:19]}
47. Kg1 {[%clk 0:00:05.8]} 47... Rxb2 {[%clk 0:00:20]} 48. Rg8+ {[%clk
0:00:05.8]} 48... Kh6 {[%clk 0:00:20.4]} 49. Kf1 {[%clk 0:00:04.6]} 49... Rxb3
{[%clk 0:00:20.7]} 50. Ne7 {[%clk 0:00:04]} 50... Rf3+ {[%clk 0:00:18.4]} 51.
Ke2 {[%clk 0:00:04.7]} 51... Kh7 {[%clk 0:00:19.2]} 52. Rg5 {[%clk 0:00:05.3]}
52... Rf6 {[%clk 0:00:18.2]} 53. Nd5 {[%clk 0:00:04]} 53... Rg6 {[%clk
0:00:17.9]} 54. Rh5+ {[%clk 0:00:04.5]} 54... Kg7 {[%clk 0:00:19.2]} 55. Ne7
{[%clk 0:00:05.7]} 55... Kf6 {[%clk 0:00:16.5]} 56. Nd5+ {[%clk 0:00:05.7]}
56... Ke6 {[%clk 0:00:16.9]} 57. Ne3 {[%clk 0:00:06.4]} 57... Rxe3+ {[%clk
0:00:17]} 58. Kxe3 {[%clk 0:00:07.1]} 58... Rxg3+ {[%clk 0:00:18.9]} 0-1